fUSD/lending_fUSD_20251108
["ID","MTS","AMOUNT","RATE_DAILY","PERIOD"]
[393413455,1762621838256,-500.0,0.00017899,2]
[393413456,1762621838268,-500.0,0.00017899,2]
[393413457,1762621838279,-500.0,0.00017899,2]
[393413458,1762621838290,-500.0,0.00017899,2]
[393413459,1762621838301,-500.0,0.00017899,2]
[393413460,1762621838313,-500.0,0.00017899,2]
[393413461,1762621838324,-500.0,0.00017899,2]
[393413462,1762621838336,-500.0,0.00017899,2]
[393413463,1762621838346,-500.0,0.00017899,2]
[393413464,1762621838356,-500.0,0.00017899,2]
[393413465,1762621838367,-500.0,0.00017899,2]
[393413466,1762621838378,-500.0,0.00017899,2]
[393413467,1762621838389,-500.0,0.00017899,2]
[393413468,1762621838400,-500.0,0.00017899,2]
[393413469,1762621838412,-500.0,0.00017899,2]
[393413470,1762621838425,-500.0,0.00017899,2]
[393413471,1762621838443,-500.0,0.00017899,2]
[393413472,1762621838456,-150.81,0.000179,2]
[393413473,1762621838468,-158.92674236,0.000179,2]
[393413474,1762621838480,-1300.0,0.000179,6]
[393413475,1762621838492,-64007.65382515,0.000179,2]
[393413476,1762621838507,-3071.36432793,0.000179,2]
[393413477,1762621838524,-1705.97030804,0.000179,2]
[393413478,1762621838537,-3198.87387552,0.000179,2]
[393413479,1762621838549,-2141.41830951,0.000179,2]
[393413480,1762621838561,-5138.5,0.000179,2]
[393413482,1762621839687,-981.27000004,0.000179,2]
[393413483,1762621839699,-703.2157794,0.000179,2]
[393413484,1762621839901,-35281.07206324,0.000179,2]
[393413485,1762621839974,-1254.73255102,0.000179,2]
[393413486,1762621840009,-1575.8086896,0.000179,2]
[393413487,1762621840023,-470.23099988,0.000179,2]
[393413488,1762621840034,-846.00432761,0.000179,2]
[393413519,1762621842801,-15136.49325366,0.000179,2]
[393413520,1762621842854,-10463.67804648,0.000179,2]
[393413521,1762621842937,-154023.71364292,0.000179,2]
[393413522,1762621842947,-500.0,0.00017973,2]
[393413523,1762621842957,-500.0,0.00017973,2]
[393413524,1762621842967,-500.0,0.00017973,2]
[393413525,1762621842976,-500.0,0.00017973,2]
[393413526,1762621842985,-503.26144278,0.00017973,2]
[393413527,1762621842995,-500.0,0.00017973,2]
[393413528,1762621843004,-500.0,0.00017973,2]
[393413529,1762621843015,-142.04168129,0.00017973,2]
[393413530,1762621843277,-357.95831871,0.00017973,2]
[393413531,1762621843287,-151.36310129,0.00017973,2]
[393413574,1762621846337,-199.80242985,0.00017973,2]
[393413575,1762621846347,-500.0,0.00017973,2]
[393413576,1762621846357,-500.0,0.00017973,2]
[393413577,1762621846367,-500.0,0.00017973,2]
[393413578,1762621846376,-500.0,0.00017973,2]
[393413579,1762621846385,-500.0,0.00017973,2]
[393413580,1762621846396,-500.87193966,0.00017973,2]
[393413581,1762621846410,-662.57,0.00017973,2]
[393413582,1762621846420,-151.0,0.00017989,2]
[393413583,1762621846430,-151.0,0.00017989,2]
[393413584,1762621846439,-151.0,0.00017989,2]
[393413585,1762621846449,-151.0,0.00017989,2]
[393413586,1762621846459,-151.0,0.00017989,2]
[393413587,1762621846468,-151.0,0.00017989,2]
[393413588,1762621846478,-151.0,0.00017989,2]
[393413589,1762621846487,-151.0,0.00017989,2]
[393413590,1762621846497,-151.0,0.00017989,2]
[393413591,1762621846507,-151.0,0.00017989,2]
[393413592,1762621846519,-172.01265743,0.0001799,2]
[393413593,1762621846528,-500.0,0.00017994,2]
[393413594,1762621846539,-187.6283326,0.00017994,2]
[393413595,1762621846548,-269.9724245,0.00017995,2]
[393413596,1762621846557,-1584.15221597,0.00017995,2]
[393413675,1762622871363,6598.40658633,0.00015,2]
[393413676,1762622871389,6598.40658633,0.00015,2]
[393413677,1762622871416,6598.40658633,0.00015,2]
[393413678,1762622871442,6598.40658633,0.00015,2]
[393413679,1762622871466,6598.40658633,0.00015,2]
[393413680,1762622871490,6598.40658633,0.00015,2]
[393413681,1762622871515,6598.40658633,0.00015,2]
[393413682,1762622871539,6598.40658633,0.00015,2]
[393413683,1762622871568,6598.40658633,0.00015,2]
[393413684,1762622871592,6598.40658633,0.00015,2]
[393413685,1762622871621,725499.1610044,0.00015,2]
[393413686,1762622887727,247.56446448,0.000135,2]
[393413687,1762622887795,304.85406348,0.000125,2]
[393413688,1762622894093,500.0,0.00014973,2]
[393413689,1762622894150,500.0,0.00015521,2]
[393413690,1762622894179,500.0,0.00014973,2]
[393413691,1762622894225,500.0,0.00015521,2]
[393413692,1762622894540,500.0,0.00014973,2]
[393413693,1762622894592,203.8898473,0.00015521,2]
[393413694,1762622896194,500.0,0.00014973,2]
[393413695,1762622896247,500.0,0.00015521,2]
[393413706,1762623031894,-250.0,0.00017,2]
[393413707,1762623031905,-300.0,0.00017079,2]
[393413708,1762623031914,-250.0,0.00017226,2]
[393413709,1762623031923,-1580.36,0.00017315,2]
[393413710,1762623031933,-190.46,0.0001734,2]
[393413711,1762623031943,-2000.0,0.000175,2]
[393413712,1762623031952,-372.0,0.00017525,2]
[393413713,1762623031961,-300.0,0.00017525,2]
[393413714,1762623031970,-1200.0,0.00017525,2]
[393413715,1762623031979,-8958.33,0.00017526,2]
[393413716,1762623031988,-893.79653187,0.00017663,2]
[393413717,1762623031998,-221.8242667,0.00017766,2]
[393413718,1762623032008,-8031.98707274,0.00017803,2]
[393413719,1762623032026,-1445.25869938,0.00017803,2]
[393413720,1762623032037,-200.25321118,0.00017803,2]
[393413721,1762623032049,-1000.0,0.00017821,2]
[393413722,1762623032059,-15151.35,0.00017822,2]
[393413723,1762623032070,-200.0,0.00017851,2]
[393413724,1762623032079,-173.69,0.00017873,2]
[393413725,1762623032089,-2624.299,0.00017873,2]
[393413726,1762623032099,-550.0,0.00017894,2]
[393413727,1762623032108,-159.56367711,0.00017895,2]
[393413728,1762623032120,-12906.5518735,0.00017895,2]
[393413729,1762623032129,-363.42357926,0.00017895,2]
[393413730,1762623032139,-160.05182826,0.000179,2]
[393413731,1762623032148,-524.9947824,0.000179,2]
[393413732,1762623032157,-3175.31729234,0.000179,2]
[393413733,1762623032167,-403.49580254,0.00017902,2]
[393413735,1762623032177,-500.0,0.00017902,2]
[393413737,1762623032186,-500.0,0.00017902,2]
[393413738,1762623032195,-500.0,0.00017902,2]
[393413739,1762623032205,-500.0,0.00017902,2]
[393413740,1762623032215,-500.0,0.00017902,2]
[393413741,1762623032224,-500.0,0.00017902,2]
[393413743,1762623032234,-500.0,0.00017902,2]
[393413744,1762623032243,-500.0,0.00017902,2]
[393413745,1762623032251,-605.76991459,0.00017902,2]
[393413746,1762623032261,-500.0,0.00017902,2]
[393413747,1762623032271,-500.0,0.00017902,2]
[393413748,1762623032280,-552.14,0.00017902,2]
[393413749,1762623032290,-6717.09169905,0.00017903,2]
[393413750,1762623032302,-1871.48590756,0.00017903,2]
[393413751,1762623032315,-754.09147208,0.00017903,2]
[393413752,1762623032331,-2781.42755232,0.00017903,2]
[393413753,1762623032342,-2061.40965279,0.00017903,2]
[393413754,1762623032354,-1585.10498767,0.00017903,2]
[393413755,1762623032366,-8922.38117758,0.00017903,2]
[393413756,1762623032377,-1082.68320992,0.00017903,2]
[393413760,1762623037869,-2227.0,0.00017903,2]
[393413761,1762623037922,-1282.527036,0.00017903,2]
[393413762,1762623038029,-1605.80014706,0.00017903,2]
[393413770,1762623040195,-206.44365388,0.000179,2]
[393413771,1762623040205,-1795.22982671,0.00017903,2]
[393413772,1762623040217,-31257.83656926,0.00017903,2]
[393413773,1762623040227,-45296.3643947,0.00017903,2]
[393413774,1762623040238,-3154.4186193,0.00017903,2]
[393413775,1762623040248,-172.39794446,0.00017973,2]
[393413776,1762623040260,-327.60205554,0.00017973,2]
[393413777,1762623040270,-500.0,0.00017973,2]
[393413778,1762623040279,-504.75986535,0.00017973,2]
[393413779,1762623040289,-500.0,0.00017973,2]
[393413780,1762623040299,-514.51741513,0.00017973,2]
[393413781,1762623040309,-500.0,0.00017973,2]
[393413782,1762623040319,-155.04743738,0.00017973,2]
[393413783,1762623040328,-1000.0,0.00017973,2]
[393413784,1762623040338,-1000.0,0.00017973,2]
[393413786,1762623040358,-1000.0,0.00017973,2]
[393413788,1762623040368,-1000.0,0.00017973,2]
[393413789,1762623040377,-1000.0,0.00017973,2]
[393413791,1762623040387,-1000.0,0.00017973,2]
[393413793,1762623040396,-286.9,0.00017973,2]
[393413794,1762623040406,-500.0,0.00017994,2]
[393413796,1762623040415,-272.23,0.00017994,2]
[393413798,1762623040425,-500.0,0.00017994,2]
[393413799,1762623040434,-266.938,0.00017994,2]
[393413801,1762623040444,-500.0,0.00017994,2]
[393413803,1762623040453,-500.0,0.00017994,2]
[393413804,1762623040463,-198.37776562,0.00017994,2]
[393413805,1762623040473,-500.0,0.00017994,2]
[393413806,1762623040483,-199.0,0.00017994,2]
[393413807,1762623040493,-14431.1598245,0.00017995,2]
[393413808,1762623040503,-1362.8743171,0.00017995,2]
[393413809,1762623040513,-3345.6609973,0.00017995,2]
[393413818,1762623043048,-534.4689247,0.00017995,2]
[393413819,1762623043062,-8360.2740677,0.00017995,2]
[393413820,1762623043073,-199.3193,0.00017995,2]
[393413821,1762623043082,-150.0,0.00017995,2]
[393413822,1762623043093,-150.0,0.00017995,2]
[393413823,1762623043103,-500.0,0.00017999,2]
[393413824,1762623043112,-500.0,0.00017999,2]
[393413825,1762623043122,-500.0,0.00017999,2]
[393413826,1762623043134,-386.21828092,0.00017999,2]
[393413827,1762623043143,-500.0,0.00017999,2]
[393413828,1762623043153,-300.0,0.00017999,2]
[393413829,1762623043163,-420.95721786,0.00017999,2]
[393413830,1762623043172,-1000.684,0.00017999,2]
[393413831,1762623043186,-500.0,0.00017999,2]
[393413832,1762623043195,-500.0,0.00017999,2]
[393413833,1762623043205,-500.0,0.00017999,2]
[393413834,1762623043216,-500.0,0.00017999,2]
[393413835,1762623043226,-500.0,0.00017999,2]
[393413836,1762623043236,-500.0,0.00017999,2]
[393413837,1762623043246,-500.0,0.00017999,2]
[393413838,1762623043257,-500.0,0.00017999,2]
[393413839,1762623043267,-500.0,0.00017999,2]
[393413840,1762623043277,-500.0,0.00017999,2]
[393413841,1762623043286,-500.0,0.00017999,2]
[393413842,1762623043297,-500.0,0.00017999,2]
[393413843,1762623043307,-288.46172803,0.00017999,2]
[393413844,1762623043317,-16479.33016219,0.00018,2]
[393413845,1762623043332,-1441059.2634252,0.00018,2]
[393413846,1762623043381,-228.09862864,0.00018,2]
[393413855,1762623046104,-323.60337317,0.00018,2]
[393413856,1762623046159,-304.2716808,0.00018,2]
[393413857,1762623046218,-10218.37610058,0.00018,2]
[393413858,1762623046446,-626.27598807,0.00018,2]
[393413859,1762623046537,-3970.0,0.00018,2]
[393413860,1762623175065,300.0,0.000167,2]
[393413879,1762624232036,-2896.99,0.00017179,2]
[393413880,1762624232046,-195.0,0.00017191,2]
[393413881,1762624232056,-535.46,0.00017203,2]
[393413882,1762624232065,-1592.31267076,0.00017208,2]
[393413883,1762624232095,-405.14652792,0.00017208,2]
[393413884,1762624232142,-4001.43080132,0.00017208,2]
[393413885,1762624232151,-195.0,0.00017245,2]
[393413886,1762624232160,-150.0,0.00017258,2]
[393413887,1762624232170,-783.0868387,0.0001727,2]
[393413888,1762624232248,-216.9131613,0.0001727,2]
[393413889,1762624232258,-1284.0868387,0.00017315,2]
[393413890,1762624232269,-614.50389,0.00017315,2]
[393413902,1762624238115,-852.4092713,0.00017315,2]
[393413903,1762624238126,-150.0,0.00017356,2]
[393413904,1762624238136,-200.0,0.00017446,2]
[393413905,1762624238146,-200.0,0.00017498,2]
[393413906,1762624238156,-53.76309196,0.00017642,2]
[393413907,1762624238168,-1146.23690804,0.00017642,2]
[393413908,1762624238178,-300.0,0.00017643,2]
[393413909,1762624238188,-1971.36309197,0.00017644,2]
[393413910,1762624238200,-1364.12690803,0.00017644,2]
[393413911,1762624238210,-359.22,0.00017647,2]
[393413912,1762624238220,-166.68,0.00017793,2]
[393413913,1762624238230,-125.59687197,0.00017856,2]
[393413914,1762624238246,-74.40312803,0.00017856,2]
[393413915,1762624238257,-449.99552772,0.000179,2]
[393413916,1762624238268,-317.02880637,0.000179,2]
[393413917,1762624240154,-2476.88896767,0.000179,2]
[393413918,1762624240208,-8250.39692315,0.000179,2]
[393413919,1762624240220,-571.58198896,0.000179,2]
[393413920,1762624240230,-31.92601104,0.000179,2]
[393413921,1762624240315,-286.06962076,0.000179,2]
[393413922,1762624240324,-158.98141913,0.000179,2]
[393413923,1762624240335,-779.86386453,0.000179,2]
[393413976,1762624244657,-307.17818093,0.000179,2]
[393413977,1762624244671,-464.83204402,0.000179,2]
[393413985,1762624246195,-7019.01144163,0.000179,2]
[393413986,1762624246205,-500.0,0.00017973,2]
[393413987,1762624246214,-500.0,0.00017973,2]
[393413988,1762624246224,-759.32,0.00017989,2]
[393413989,1762624246233,-151.0,0.00017989,2]
[393413990,1762624246243,-151.0,0.00017989,2]
[393413991,1762624246252,-151.0,0.00017989,2]
[393413992,1762624246262,-151.0,0.00017989,2]
[393413993,1762624246271,-151.0,0.00017989,2]
[393413994,1762624246281,-151.0,0.00017989,2]
[393413995,1762624246290,-151.0,0.00017989,2]
[393413996,1762624246299,-151.0,0.00017989,2]
[393413997,1762624246308,-151.0,0.00017989,2]
[393413998,1762624246317,-151.0,0.00017989,2]
[393413999,1762624246327,-151.0,0.00017989,2]
[393414000,1762624246336,-151.0,0.00017989,2]
[393414001,1762624246345,-151.0,0.00017989,2]
[393414002,1762624246354,-151.0,0.00017989,2]
[393414003,1762624246363,-151.0,0.00017989,2]
[393414004,1762624246373,-151.0,0.00017989,2]
[393414005,1762624246383,-151.0,0.00017989,2]
[393414006,1762624246395,-151.0,0.00017989,2]
[393414007,1762624246405,-151.0,0.00017989,2]
[393414008,1762624246415,-151.0,0.00017989,2]
[393414009,1762624246424,-300.0,0.00017999,2]
[393414010,1762624246434,-2642.192,0.00017999,2]
[393414011,1762624246443,-174.214,0.00017999,2]
[393414012,1762624246453,-366.90921091,0.00017999,2]
[393414013,1762624246462,-500.0,0.00017999,2]
[393414014,1762624246474,-500.0,0.00017999,2]
[393414015,1762624246483,-500.0,0.00017999,2]
[393414016,1762624246492,-500.0,0.00017999,2]
[393414017,1762624246502,-134.70911373,0.00017999,2]
[393414018,1762624246535,-365.29088627,0.00017999,2]
[393414019,1762624246547,-500.0,0.00017999,2]
[393414020,1762624246559,-500.0,0.00017999,2]
[393414021,1762624246570,-203.9277194,0.00017999,2]
[393414022,1762624246583,-296.0722806,0.00017999,2]
[393414023,1762624246596,-300.46372178,0.00017999,2]
[393414024,1762624246608,-199.7376928,0.00017999,2]
[393414025,1762624246619,-168.73603272,0.00017999,2]
[393414026,1762624246629,-350.2942881,0.00017999,2]
[393414027,1762624246726,-149.7057119,0.00017999,2]
[393414028,1762624246736,-231.10836625,0.00017999,2]
[393414029,1762624246746,-500.0,0.00017999,2]
[393414030,1762624246755,-37.33597674,0.00017999,2]
[393414083,1762624324739,176.7,0.00014485,2]
[393414084,1762624392490,746.47,8.931e-05,2]
[393414085,1762624392692,746.47,9.383e-05,2]
[393414086,1762624392894,746.47,9.834e-05,2]
[393414087,1762624393089,746.47,0.00010286,2]
[393414088,1762624393497,746.47,0.00010737,2]
[393414089,1762624393710,746.47,0.00011189,2]
[393414090,1762624393995,746.47,0.00011641,2]
[393414091,1762624394130,746.47,0.00012092,2]
[393414092,1762624394397,746.47,0.00012544,2]
[393414093,1762624394806,746.47,0.00012995,2]
[393414094,1762624395025,746.47,0.00013447,2]
[393414095,1762624395223,746.47,0.00013899,2]
[393414096,1762624395414,746.47,0.0001435,2]
[393414097,1762624395811,746.47,0.00014802,2]
[393414098,1762624396060,746.47,0.00015254,2]
[393414099,1762624396246,746.47,0.00015705,2]
[393414100,1762624396466,746.47,0.00016157,2]
[393414101,1762624396669,746.47,0.00016608,2]
[393414103,1762624616637,491.55,0.00013699,2]
[393414109,1762625407094,1827.77,0.00016438,2]
[393414117,1762625432384,-250.0,0.00017,2]
[393414118,1762625432394,-250.0,0.00017002,2]
[393414119,1762625432403,-201.61386136,0.00017004,2]
[393414120,1762625432415,-98.38613864,0.00017004,2]
[393414121,1762625432433,-429.57,0.00017031,2]
[393414122,1762625432444,-746.47,0.0001706,2]
[393414123,1762625432454,-500.0,0.00017083,2]
[393414124,1762625432464,-166.66,0.00017168,2]
[393414125,1762625432473,-150.0,0.00017221,2]
[393414126,1762625432483,-871.37036052,0.000175,2]
[393414127,1762625432496,-1128.62963948,0.000175,2]
[393414128,1762625432506,-796.24,0.00017512,2]
[393414129,1762625432516,-746.47,0.00017512,2]
[393414130,1762625432527,-122.48978339,0.00017529,2]
[393414131,1762625432540,-44.17021661,0.00017529,2]
[393414132,1762625432549,-200.0,0.00017856,2]
[393414133,1762625432558,-300.0,0.00017858,2]
[393414134,1762625432568,-2.36867768,0.00017858,2]
[393414135,1762625432580,-1197.63132232,0.00017858,2]
[393414136,1762625432590,-300.0,0.00017858,2]
[393414137,1762625432600,-157.78666024,0.00017859,2]
[393414138,1762625432611,-314.43958933,0.00017859,2]
[393414139,1762625432623,-7251.27976889,0.00017859,2]
[393414140,1762625432633,-166.66,0.00017891,2]
[393414141,1762625432643,-2113.753,0.000179,2]
[393414143,1762625432652,-174.214,0.000179,2]
[393414145,1762625432663,-385.71045234,0.000179,2]
[393414147,1762625432672,-10175.84858905,0.000179,2]
[393414149,1762625432684,-1184.37936971,0.000179,2]
[393414151,1762625432694,-158.9814191,0.000179,2]
[393414153,1762625432703,-151.0,0.00017948,2]
[393414155,1762625432712,-151.0,0.00017948,2]
[393414157,1762625432722,-151.0,0.00017948,2]
[393414159,1762625432731,-151.0,0.00017956,2]
[393414161,1762625432741,-500.0,0.00017958,2]
[393414164,1762625432755,-500.0,0.00017958,2]
[393414166,1762625432765,-179.37560183,0.00017958,2]
[393414168,1762625432774,-500.0,0.00017958,2]
[393414170,1762625432786,-500.0,0.00017958,2]
[393414172,1762625432795,-500.0,0.00017958,2]
[393414174,1762625432805,-439.26360936,0.00017958,2]
[393414176,1762625432816,-60.73639064,0.00017958,2]
[393414178,1762625432828,-276.65519567,0.00017958,2]
[393414180,1762625432838,-500.0,0.00017958,2]
[393414184,1762625432847,-500.0,0.00017958,2]
[393414187,1762625432856,-500.0,0.00017958,2]
[393414190,1762625432866,-157.0492556,0.00017959,2]
[393414193,1762625432875,-542.12032145,0.00017959,2]
[393414196,1762625432887,-347.43508066,0.00017959,2]
[393414199,1762625432898,-191184.56218411,0.00017959,2]
[393414203,1762625432909,-34363.47280688,0.00017959,2]
[393414207,1762625432920,-1364.57915515,0.00017959,2]
[393414210,1762625432931,-2051.98305675,0.00017959,2]
[393414213,1762625432941,-1347.95472087,0.00017959,2]
[393414253,1762625438143,-1154.39821688,0.00017959,2]
[393414254,1762625438199,-591.73052285,0.00017959,2]
[393414255,1762625438209,-422.28247715,0.00017959,2]
[393414256,1762625438253,-308.81,0.00017959,2]
[393414257,1762625438310,-2007.30206413,0.00017959,2]
[393414258,1762625438370,-7632.566163,0.00017959,2]
[393414269,1762625440274,-3338.83736062,0.00017959,2]
[393414270,1762625440284,-419.2814,0.00017973,2]
[393414271,1762625440294,-500.0,0.00017973,2]
[393414272,1762625440304,-500.0,0.00017973,2]
[393414273,1762625440314,-500.0,0.00017973,2]
[393414274,1762625440323,-500.0,0.00017973,2]
[393414275,1762625440334,-500.0,0.00017973,2]
[393414276,1762625440343,-500.0,0.00017973,2]
[393414277,1762625440353,-161.68170507,0.00017973,2]
[393414278,1762625440362,-500.0,0.00017973,2]
[393414279,1762625440372,-500.0,0.00017973,2]
[393414280,1762625440381,-500.0,0.00017973,2]
[393414281,1762625440391,-500.0,0.00017973,2]
[393414282,1762625440401,-500.0,0.00017973,2]
[393414283,1762625440411,-500.0,0.00017973,2]
[393414284,1762625440421,-301.41053431,0.00017973,2]
[393414285,1762625440438,-198.58946569,0.00017973,2]
[393414286,1762625440448,-664.4,0.00017973,2]
[393414287,1762625440457,-151.0,0.00017997,2]
[393414288,1762625440467,-300.0,0.00017999,2]
[393414289,1762625440477,-151.0,0.00017999,2]
[393414290,1762625440486,-150.0,0.00017999,2]
[393414291,1762625440497,-150.0,0.00017999,2]
[393414292,1762625440507,-150.0,0.00017999,2]
[393414293,1762625440516,-150.0,0.00017999,2]
[393414294,1762625440526,-166.09941,0.00017999,2]
[393414295,1762625440537,-1329.01753098,0.00018,2]
[393414296,1762625440549,-2736.98246902,0.00018,2]
[393414297,1762625440560,-2316.51753098,0.00018,2]
[393414298,1762625440576,-7607.92897103,0.00018,2]
[393414299,1762625440588,-10135.12500001,0.00018,2]
[393414300,1762625440623,-1086.03089328,0.00018,2]
[393414301,1762625440635,-3606.64961945,0.00018,2]
[393414302,1762625440646,-2330.08732892,0.00018,2]
[393414303,1762625440658,-1059.86584396,0.00018,2]
[393414304,1762625440670,-4689.52642207,0.00018,2]
[393414305,1762625440681,-499.43818108,0.00018,2]
[393414340,1762625443453,-1915.9486666,0.00018,2]
[393414346,1762625443562,-1240.0779603,0.00018,2]
[393414347,1762625443576,-321.40056542,0.00018,2]
[393414348,1762625443587,-685.75436411,0.00018,2]
[393414349,1762625443617,-687437.87546308,0.00018,2]
[393414350,1762625443628,-10943.99999999,0.00018,2]
[393414351,1762625443673,-338.81,0.00018,2]
[393414352,1762625443892,-601.03200261,0.00018,2]
[393414387,1762625446428,-866.03999999,0.00018,2]
[393414388,1762625446441,-281.46535019,0.00018,2]
[393414389,1762625446536,-551.92428001,0.00018,2]
[393414418,1762626007872,1867.271852,7.945e-05,2]
[393414436,1762626310547,1052.32012632,0.000154,2]
[393414448,1762626470071,1212982.80297756,0.00015,2]
[393414449,1762626518454,1993.58926694,0.00013699,2]
[393414473,1762626631528,-663.77175799,0.0001707,3]
[393414474,1762626631540,-335.22824201,0.0001707,3]
[393414475,1762626631550,-539.64582103,0.00017089,2]
[393414476,1762626631707,-2097.76417897,0.00017089,2]
[393414477,1762626631717,-921.94,0.00017147,2]
[393414478,1762626631728,-300.0,0.00017319,2]
[393414479,1762626631738,-1200.0,0.00017319,2]
[393414480,1762626631748,-250.0,0.0001732,2]
[393414481,1762626631759,-1736.84815542,0.0001732,2]
[393414482,1762626631771,-4050.606015,0.0001732,2]
[393414483,1762626631783,-466.37199,0.0001732,2]
[393414485,1762626631794,-4594.04383958,0.0001732,2]
[393414488,1762626631804,-250.0,0.00017321,2]
[393414490,1762626631813,-157.17,0.00017373,2]
[393414491,1762626631823,-1097.5316828,0.00017457,2]
[393414492,1762626631865,-754.8883172,0.00017457,2]
[393414493,1762626631875,-166.66,0.00017696,2]
[393414494,1762626631885,-387.4516828,0.000177,2]
[393414499,1762626637413,-612.5483172,0.000177,2]
[393414500,1762626637424,-1739.5898,0.000178,2]
[393414501,1762626637434,-234.4091,0.000178,2]
[393414502,1762626637443,-166.09942,0.0001782,2]
[393414503,1762626637453,-177.7533628,0.00017856,2]
[393414504,1762626637522,-22.2466372,0.00017856,2]
[393414505,1762626637533,-399.14324315,0.00017881,2]
[393414506,1762626637543,-284.39951643,0.00017881,2]
[393414507,1762626637553,-550.0,0.00017898,2]
[393414508,1762626637563,-330.60895914,0.000179,2]
[393414509,1762626637572,-3483.10164408,0.000179,2]
[393414510,1762626637584,-3671.61514765,0.000179,2]
[393414511,1762626637594,-216.68773416,0.000179,2]
[393414512,1762626637604,-158.79893681,0.000179,2]
[393414513,1762626637613,-206.44365387,0.000179,2]
[393414514,1762626637623,-1148.0,0.0001795,2]
[393414515,1762626637632,-500.0,0.00017973,2]
[393414516,1762626637641,-500.0,0.00017973,2]
[393414517,1762626637650,-500.0,0.00017973,2]
[393414518,1762626637660,-760.91,0.00017987,2]
[393414519,1762626637669,-151.0,0.00017989,2]
[393414520,1762626637678,-151.0,0.00017989,2]
[393414521,1762626637688,-151.0,0.00017989,2]
[393414522,1762626637698,-151.0,0.00017989,2]
[393414523,1762626637707,-151.0,0.00017989,2]
[393414524,1762626637717,-151.0,0.00017989,2]
[393414525,1762626637728,-856.93725133,0.00017999,2]
[393414527,1762626637744,-963.08000337,0.00017999,2]
[393414530,1762626637756,-7891.6575938,0.00017999,2]
[393414532,1762626637766,-1058.9543049,0.00017999,2]
[393414534,1762626637775,-667.16,0.00017999,2]
[393414536,1762626637785,-300.0,0.00017999,2]
[393414538,1762626637795,-150.0,0.00017999,2]
[393414539,1762626637805,-150.0,0.00017999,2]
[393414541,1762626637815,-124.18014837,0.00017999,2]
[393414630,1762626639492,-297.42028209,0.000179,2]
[393414631,1762626639503,-375.81985163,0.00017999,2]
[393414632,1762626639513,-150.0,0.00017999,2]
[393414633,1762626639522,-150.0,0.00017999,2]
[393414634,1762626639532,-150.0,0.00017999,2]
[393414635,1762626639543,-509.97784276,0.00017999,2]
[393414636,1762626639552,-500.0,0.00017999,2]
[393414637,1762626639561,-500.0,0.00017999,2]
[393414638,1762626639571,-301.31151429,0.00017999,2]
[393414639,1762626639581,-500.0,0.00017999,2]
[393414640,1762626639591,-118.84943631,0.00017999,2]
[393414641,1762626639603,-381.15056369,0.00017999,2]
[393414642,1762626639613,-375.32688569,0.00017999,2]
[393414643,1762626639622,-500.0,0.00017999,2]
[393414644,1762626639632,-306.32908407,0.00017999,2]
[393414645,1762626639647,-193.67091593,0.00017999,2]
[393414646,1762626639656,-500.0,0.00017999,2]
[393414647,1762626639666,-324.90615575,0.00017999,2]
[393414648,1762626639675,-87.31028832,0.00017999,2]
[393414649,1762626639690,-341.67481127,0.00017999,2]
[393414650,1762626639700,-500.0,0.00017999,2]
[393414651,1762626639710,-500.0,0.00017999,2]
[393414652,1762626639719,-500.0,0.00017999,2]
[393414653,1762626639729,-500.0,0.00017999,2]